fUSD/lending_fUSD_20260321
["ID","MTS","AMOUNT","RATE_DAILY","PERIOD"]
[408691527,1774127446500,-2293.72232384,0.00016,2]
[408691548,1774128438125,-217.957864,0.0001359,2]
[408691549,1774128438146,-5000.0,0.00013659,2]
[408691550,1774128438166,-150.0,0.00013693,2]
[408691551,1774128438187,-300.0,0.00013697,2]
[408691552,1774128438208,-1200.0,0.00013698,2]
[408691553,1774128438229,-300.0,0.00013698,2]
[408691554,1774128438254,-150.0,0.00013698,2]
[408691555,1774128438274,-168.46,0.00013699,2]
[408691556,1774128438296,-185.64290561,0.00013699,2]
[408691570,1774128631470,-300.0,0.00013698,2]
[408691571,1774128631480,-1200.0,0.00013698,2]
[408691572,1774128631490,-300.0,0.00013698,2]
[408691573,1774128631499,-656.69709439,0.00013699,2]
[408691574,1774128631511,-2000.0,0.00013733,2]
[408691575,1774128631521,-200.0,0.00013747,2]
[408691577,1774128631531,-3167.26,0.00013842,2]
[408691579,1774128631540,-1600.0,0.00013891,2]
[408691580,1774128631549,-150.0,0.00013954,2]
[408691581,1774128631559,-12308.95,0.00013955,2]
[408691582,1774128631569,-166.69,0.00014005,2]
[408691583,1774128631578,-3313.54098379,0.00014029,2]
[408691594,1774128637451,-102142.72531621,0.00014029,2]
[408691595,1774128637460,-1886.03,0.00014129,2]
[408691596,1774128637472,-29682.46125192,0.00014173,2]
[408691597,1774128637481,-150.99,0.00014173,2]
[408691598,1774128637490,-3485.566,0.0001428,2]
[408691599,1774128637501,-153.336,0.0001428,2]
[408691600,1774128637512,-299.99,0.0001428,2]
[408691601,1774128637524,-350.92,0.0001428,2]
[408691602,1774128637533,-517.34,0.0001428,2]
[408691603,1774128637542,-1568.0,0.000144,2]
[408691604,1774128637553,-2403.0,0.000144,2]
[408691605,1774128637562,-1568.0,0.000144,2]
[408691606,1774128637573,-1568.0,0.000144,2]
[408691607,1774128637583,-6665.30790525,0.00014471,2]
[408691608,1774128637592,-223.21126626,0.00014473,2]
[408691609,1774128637603,-632.57584937,0.00014473,2]
[408691610,1774128637613,-13536.68320627,0.00014473,2]
[408691611,1774128637623,-377.24452366,0.00014473,2]
[408691612,1774128637634,-393.0,0.00014531,2]
[408691613,1774128637643,-714.76,0.00014562,2]
[408691614,1774128637652,-151.0,0.00014562,2]
[408691615,1774128637662,-151.0,0.00014562,2]
[408691616,1774128637675,-200.0,0.00014562,2]
[408691618,1774128637685,-151.0,0.00014562,2]
[408691620,1774128637694,-151.0,0.00014562,2]
[408691622,1774128637703,-151.0,0.00014562,2]
[408691624,1774128637713,-500.0,0.00014562,2]
[408691626,1774128637722,-151.0,0.00014562,2]
[408691628,1774128637732,-500.0,0.00014562,2]
[408691630,1774128637741,-151.0,0.00014562,2]
[408691632,1774128637751,-151.0,0.00014562,2]
[408691634,1774128637761,-414.35315363,0.00014562,2]
[408691636,1774128637770,-151.0,0.00014562,2]
[408691638,1774128637779,-151.0,0.00014562,2]
[408691640,1774128637789,-151.0,0.00014562,2]
[408691642,1774128637798,-151.0,0.00014562,2]
[408691645,1774128637807,-151.0,0.00014562,2]
[408691647,1774128637817,-151.0,0.00014562,2]
[408691649,1774128637827,-151.0,0.00014562,2]
[408691651,1774128637836,-151.0,0.00014562,2]
[408691653,1774128637845,-151.0,0.00014562,2]
[408691655,1774128637854,-151.0,0.00014562,2]
[408691657,1774128637864,-151.0,0.00014562,2]
[408691659,1774128637873,-151.0,0.00014562,2]
[408691661,1774128637882,-151.0,0.00014562,2]
[408691663,1774128637891,-151.0,0.00014562,2]
[408691665,1774128637900,-151.0,0.00014562,2]
[408691667,1774128637909,-151.0,0.00014562,2]
[408691669,1774128637918,-151.0,0.00014562,2]
[408691670,1774128637927,-151.0,0.00014562,2]
[408691672,1774128637937,-151.0,0.00014562,2]
[408691674,1774128637947,-151.0,0.00014562,2]
[408691677,1774128637956,-151.0,0.00014562,2]
[408691678,1774128637965,-228.67422982,0.00014562,2]
[408691680,1774128637975,-312.55550494,0.0001457,2]
[408691683,1774128637986,-176.25227146,0.0001457,2]
[408691685,1774128637996,-500.0,0.0001457,2]
[408691686,1774128638005,-500.0,0.0001457,2]
[408691688,1774128638015,-500.0,0.0001457,2]
[408691690,1774128638024,-153.36555988,0.0001457,2]
[408691692,1774128638033,-500.0,0.0001457,2]
[408691694,1774128638042,-621.89583768,0.0001457,2]
[408691697,1774128638056,-500.0,0.0001457,2]
[408691699,1774128638065,-500.0,0.0001457,2]
[408691701,1774128638074,-500.0,0.0001457,2]
[408691703,1774128638084,-500.0,0.0001457,2]
[408691705,1774128638093,-500.0,0.0001457,2]
[408691707,1774128638103,-524.38086568,0.0001457,2]
[408691709,1774128638112,-500.0,0.0001457,2]
[408691711,1774128638122,-500.0,0.0001457,2]
[408691713,1774128638130,-500.0,0.0001457,2]
[408691715,1774128638140,-500.0,0.0001457,2]
[408691717,1774128638150,-500.0,0.0001457,2]
[408691719,1774128638159,-500.0,0.0001457,2]
[408691721,1774128638168,-500.0,0.0001457,2]
[408691723,1774128638177,-500.0,0.0001457,2]
[408691725,1774128638186,-500.0,0.0001457,2]
[408691727,1774128638196,-500.0,0.0001457,2]
[408691729,1774128638205,-500.0,0.0001457,2]
[408691731,1774128638217,-500.0,0.0001457,2]
[408691733,1774128638226,-500.0,0.0001457,2]
[408691735,1774128638235,-441.16865267,0.0001457,2]
[408691737,1774128638245,-500.0,0.0001457,2]
[408691739,1774128638254,-500.0,0.0001457,2]
[408691741,1774128638263,-500.0,0.0001457,2]
[408691743,1774128638271,-500.0,0.0001457,2]
[408691745,1774128638283,-500.0,0.0001457,2]
[408691747,1774128638297,-500.0,0.00014573,2]
[408691749,1774128638306,-500.0,0.00014573,2]
[408691750,1774128638315,-500.0,0.00014573,2]
[408691752,1774128638326,-153.0,0.00014605,2]
[408691754,1774128638336,-237.93814367,0.00014605,2]
[408691756,1774128638345,-13536.68320626,0.00014632,2]
[408691759,1774128638355,-377.24452357,0.00014632,2]
[408691761,1774128638366,-8054.4093,0.00014633,2]
[408691763,1774128638375,-632.57584931,0.00014677,2]
[408691764,1774128638384,-500.0,0.00014685,2]
[408691766,1774128638393,-1568.0,0.0001472,2]
[408691768,1774128638403,-161.0,0.0001472,2]
[408691770,1774128638412,-500.0,0.00014724,2]
[408691772,1774128638422,-500.0,0.00014724,2]
[408691774,1774128638432,-282.40708321,0.00014724,2]
[408691777,1774128638442,-205.97,0.00014736,2]
[408691779,1774128638454,-166.69,0.00014775,2]
[408691781,1774128638464,-13536.68320626,0.0001479,2]
[408691783,1774128638473,-377.24452357,0.0001479,2]
[408691785,1774128638482,-1568.0,0.00014818,2]
[408691787,1774128638491,-161.0,0.00014818,2]
[408691789,1774128638500,-714.76,0.00014836,2]
[408691791,1774128638509,-1583.74270749,0.00014837,2]
[408691793,1774128638518,-361.88,0.00014848,2]
[408691795,1774128638527,-632.57584931,0.00014881,2]
[408691796,1774128638537,-13536.68320626,0.00014949,2]
[408691798,1774128638546,-377.24452357,0.00014949,2]
[408691800,1774128638555,-1000.0,0.00014995,2]
[408691802,1774128638564,-250.0,0.00015,2]
[408691804,1774128638573,-420.0,0.00015012,2]
[408691806,1774128638582,-307.0,0.00015012,2]
[408691808,1774128638591,-1568.0,0.0001504,2]
[408691810,1774128638600,-979.16666667,0.00015044,2]
[408691812,1774128638609,-160.0,0.00015044,2]
[408691814,1774128638619,-160.0,0.00015045,2]
[408691816,1774128638628,-250.0,0.00015068,2]
[408691818,1774128638637,-195.0,0.00015068,2]
[408691820,1774128638647,-1680.0,0.00015068,2]
[408691822,1774128638656,-250.0,0.00015068,2]
[408691844,1774128638665,-250.0,0.00015068,2]
[408691846,1774128638867,-255.0,0.0001507,2]
[408691848,1774128638876,-632.57584931,0.00015085,2]
[408691850,1774128638885,-13536.68320626,0.00015107,2]
[408691852,1774128638895,-377.24452357,0.00015107,2]
[408691854,1774128638904,-714.76,0.0001511,2]
[408691856,1774128638913,-200.0,0.0001511,2]
[408691858,1774128638922,-208.25,0.0001512,2]
[408691860,1774128638931,-1000.0,0.00015121,2]
[408691862,1774128638940,-1000.0,0.00015121,2]
[408691864,1774128638950,-1568.0,0.00015138,2]
[408691866,1774128638959,-330.53653638,0.00015157,2]
[408691868,1774128638968,-500.0,0.00015199,2]
[408691870,1774128638977,-500.0,0.00015199,2]
[408691872,1774128638986,-500.0,0.00015199,2]
[408691874,1774128638995,-500.0,0.00015199,2]
[408691876,1774128639004,-500.0,0.00015199,2]
[408691878,1774128639013,-500.0,0.00015199,2]
[408691880,1774128639022,-500.0,0.00015199,2]
[408691882,1774128639031,-500.0,0.00015199,2]
[408691884,1774128639040,-500.0,0.00015199,2]
[408691886,1774128639049,-500.0,0.00015199,2]
[408691888,1774128639059,-500.0,0.00015199,2]
[408691890,1774128639068,-500.0,0.00015199,2]
[408691892,1774128639077,-315.23117524,0.0001525,2]
[408691893,1774128639086,-13536.68320626,0.00015266,2]
[408691895,1774128639095,-377.24452357,0.00015266,2]
[408691898,1774128639105,-632.57584931,0.00015288,2]
[408691899,1774128639115,-161.0,0.0001536,2]
[408691902,1774128639124,-161.0,0.0001536,2]
[408691903,1774128639134,-161.0,0.0001536,2]
[408691906,1774128639144,-2403.0,0.0001536,2]
[408691908,1774128639153,-714.76,0.00015384,2]
[408691909,1774128639162,-350.0,0.00015394,2]
[408691910,1774128639174,-13536.68320626,0.00015424,2]
[408691911,1774128639183,-377.24452357,0.00015424,2]
[408691912,1774128639192,-2000.0,0.0001545,2]
[408691913,1774128639202,-1001.50433704,0.00015469,2]
[408691914,1774128639211,-632.57584931,0.00015492,2]
[408691915,1774128639220,-4000.0,0.00015507,2]
[408691916,1774128639229,-840.0,0.00015545,2]
[408691917,1774128639239,-166.69,0.00015545,2]
[408691918,1774128639248,-1721.0,0.00015552,2]
[408691919,1774128639257,-474.808,0.00015579,2]
[408691920,1774128639267,-13536.68320626,0.00015583,2]
[408691921,1774128639276,-377.24452357,0.00015583,2]
[408691922,1774128639286,-840.0,0.0001559,2]
[408691923,1774128639298,-500.0,0.00015616,2]
[408691924,1774128639307,-32974.6857,0.00015626,2]
[408691925,1774128639316,-1600.0,0.00015628,2]
[408691926,1774128639325,-714.76,0.00015658,2]
[408691927,1774128639334,-840.0,0.00015659,2]
[408691928,1774128639344,-502.62691089,0.00015668,2]
[408691929,1774128639353,-1500.0,0.00015668,2]
[408691930,1774128639362,-167.670797,0.00015678,7]
[408691931,1774128639371,-160.0,0.00015678,7]
[408691932,1774128639380,-303.014748,0.00015678,7]
[408691933,1774128639389,-2403.0,0.0001568,2]
[408691934,1774128639398,-160.0,0.0001568,7]
[408691935,1774128639407,-191.09838,0.0001568,7]
[408691936,1774128639416,-160.0,0.0001568,7]
[408691937,1774128639425,-289.265475,0.0001568,7]
[408691938,1774128639435,-160.0,0.0001568,7]
[408691939,1774128639444,-208.12699,0.0001568,7]
[408691940,1774128639454,-160.0,0.0001568,7]
[408691941,1774128639463,-419.713052,0.0001568,7]
[408691942,1774128639472,-438.89,0.00015684,2]
[408691943,1774128639481,-632.57584931,0.00015696,2]
[408691944,1774128639490,-2022.0,0.000157,2]
[408691945,1774128639500,-500.0,0.00015722,2]
[408691946,1774128639508,-500.0,0.00015722,2]
[408691947,1774128639518,-500.0,0.00015722,2]
[408691948,1774128639528,-500.0,0.00015722,2]
[408691949,1774128639547,-500.0,0.00015722,2]
[408691950,1774128639558,-500.0,0.00015722,2]
[408691951,1774128639568,-500.0,0.00015722,2]
[408691952,1774128639577,-500.0,0.00015722,2]
[408691953,1774128639587,-500.0,0.00015722,2]
[408691954,1774128639597,-500.0,0.00015722,2]
[408691955,1774128639607,-426.76631786,0.00015722,2]
[408691956,1774128639618,-500.0,0.00015722,2]
[408691957,1774128639628,-500.0,0.00015722,2]
[408691958,1774128639638,-500.0,0.00015722,2]
[408691959,1774128639648,-577.95065984,0.00015722,2]
[408691960,1774128639658,-500.0,0.00015722,2]
[408691962,1774128639668,-500.0,0.00015722,2]
[408691964,1774128639677,-500.0,0.00015722,2]
[408691965,1774128639687,-500.0,0.00015722,2]
[408691966,1774128639697,-500.0,0.00015722,2]
[408691967,1774128639707,-500.0,0.00015722,2]
[408691968,1774128639716,-500.0,0.00015722,2]
[408691969,1774128639725,-512.84434544,0.00015722,2]
[408691970,1774128639735,-500.0,0.00015722,2]
[408691971,1774128639744,-500.0,0.00015722,2]
[408691972,1774128639753,-500.0,0.00015722,2]
[408691973,1774128639763,-475.40838882,0.00015722,2]
[408691974,1774128639773,-500.0,0.00015722,2]
[408691975,1774128639782,-500.0,0.00015722,2]
[408691976,1774128639792,-500.0,0.00015722,2]
[408691977,1774128639802,-500.0,0.00015722,2]
[408691978,1774128639811,-500.0,0.00015722,2]
[408691979,1774128639821,-500.0,0.00015722,2]
[408691980,1774128639831,-500.0,0.00015722,2]
[408691981,1774128639840,-500.0,0.00015722,2]
[408691982,1774128639850,-500.0,0.00015722,2]
[408691983,1774128639859,-500.0,0.00015722,2]
[408691984,1774128639868,-500.0,0.00015722,2]
[408691985,1774128639878,-500.0,0.00015722,2]
[408691986,1774128639887,-500.0,0.00015722,2]
[408691987,1774128639897,-500.0,0.00015722,2]
[408691988,1774128639906,-500.0,0.00015722,2]
[408691989,1774128639916,-500.0,0.00015722,2]
[408691990,1774128639925,-500.0,0.00015722,2]
[408691991,1774128639935,-322.02411673,0.00015722,2]
[408691992,1774128639944,-500.0,0.00015722,2]
[408691993,1774128639953,-500.0,0.00015722,2]
[408691994,1774128639963,-500.0,0.00015722,2]
[408691995,1774128639972,-500.0,0.00015722,2]
[408691996,1774128639982,-500.0,0.00015722,2]
[408691997,1774128639991,-500.0,0.00015722,2]
[408691998,1774128640001,-500.0,0.00015722,2]
[408691999,1774128640011,-500.0,0.00015722,2]
[408692000,1774128640020,-500.0,0.00015722,2]
[408692002,1774128640029,-500.0,0.00015722,2]
[408692003,1774128640039,-516.42166311,0.00015722,2]
[408692004,1774128640048,-500.0,0.00015722,2]
[408692005,1774128640058,-500.0,0.00015722,2]
[408692007,1774128640067,-500.0,0.00015722,2]
[408692008,1774128640076,-500.0,0.00015722,2]
[408692009,1774128640085,-500.0,0.00015722,2]
[408692010,1774128640095,-500.0,0.00015722,2]
[408692011,1774128640104,-500.0,0.00015722,2]
[408692012,1774128640114,-500.0,0.00015722,2]
[408692013,1774128640123,-693.0,0.00015722,2]
[408692014,1774128640133,-500.0,0.00015722,2]
[408692015,1774128640143,-500.0,0.00015722,2]
[408692016,1774128640152,-554.77661707,0.00015722,2]
[408692017,1774128640161,-693.0,0.00015722,2]
[408692018,1774128640171,-500.0,0.00015722,2]
[408692019,1774128640180,-500.0,0.00015722,2]
[408692020,1774128640189,-693.0,0.00015722,2]
[408692021,1774128640199,-500.0,0.00015722,2]
[408692022,1774128640208,-215.33010556,0.00015722,2]
[408692023,1774128640218,-693.0,0.00015722,2]
[408692024,1774128640228,-500.0,0.00015722,2]
[408692025,1774128640238,-693.0,0.00015722,2]
[408692026,1774128640248,-500.0,0.00015722,2]
[408692027,1774128640258,-693.0,0.00015722,2]
[408692028,1774128640267,-500.0,0.00015722,2]
[408692029,1774128640277,-500.0,0.00015722,2]
[408692030,1774128640287,-693.0,0.00015722,2]
[408692031,1774128640299,-500.0,0.00015722,2]
[408692032,1774128640309,-693.0,0.00015722,2]
[408692033,1774128640318,-246.79709611,0.00015722,2]
[408692034,1774128640327,-500.0,0.00015722,2]
[408692035,1774128640338,-693.0,0.00015722,2]
[408692036,1774128640348,-500.0,0.00015722,2]
[408692037,1774128640358,-693.0,0.00015722,2]
[408692038,1774128640369,-500.0,0.00015722,2]
[408692039,1774128640378,-500.0,0.00015722,2]
[408692040,1774128640388,-500.0,0.00015722,2]
[408692041,1774128640397,-693.0,0.00015722,2]
[408692042,1774128640407,-500.0,0.00015722,2]
[408692043,1774128640417,-500.0,0.00015722,2]
[408692044,1774128640426,-693.0,0.00015722,2]
[408692045,1774128640435,-500.0,0.00015722,2]
[408692046,1774128640446,-500.0,0.00015722,2]
[408692047,1774128640455,-500.0,0.00015722,2]
[408692048,1774128640465,-693.0,0.00015722,2]
[408692049,1774128640474,-256.16426944,0.00015722,2]
[408692050,1774128640483,-500.0,0.00015722,2]
[408692051,1774128640492,-500.0,0.00015722,2]
[408692052,1774128640502,-693.0,0.00015722,2]
[408692053,1774128640511,-500.0,0.00015722,2]
[408692054,1774128640520,-500.0,0.00015722,2]
[408692055,1774128640530,-693.0,0.00015722,2]
[408692056,1774128640539,-500.0,0.00015722,2]
[408692057,1774128640548,-500.0,0.00015722,2]
[408692058,1774128640558,-693.0,0.00015722,2]
[408692059,1774128640567,-500.0,0.00015722,2]
[408692060,1774128640577,-500.0,0.00015722,2]
[408692061,1774128640586,-500.0,0.00015722,2]
[408692062,1774128640596,-500.0,0.00015722,2]
[408692063,1774128640605,-500.0,0.00015722,2]
[408692064,1774128640615,-693.0,0.00015722,2]
[408692065,1774128640624,-500.0,0.00015722,2]
[408692066,1774128640633,-500.0,0.00015722,2]
[408692067,1774128640643,-500.0,0.00015722,2]
[408692068,1774128640652,-372.33776627,0.00015722,2]
[408692069,1774128640662,-500.0,0.00015722,2]
[408692070,1774128640672,-500.0,0.00015722,2]
[408692071,1774128640682,-500.0,0.00015722,2]
[408692072,1774128640691,-693.0,0.00015722,2]
[408692073,1774128640701,-500.0,0.00015722,2]
[408692074,1774128640710,-500.0,0.00015722,2]
[408692075,1774128640719,-261.70880193,0.00015722,2]
[408692076,1774128640729,-500.0,0.00015722,2]
[408692077,1774128640739,-500.0,0.00015722,2]
[408692078,1774128640750,-500.0,0.00015722,2]
[408692079,1774128640761,-500.0,0.00015722,2]
[408692080,1774128640772,-500.0,0.00015722,2]
[408692081,1774128640782,-693.0,0.00015722,2]
[408692082,1774128640791,-500.0,0.00015722,2]
[408692083,1774128640800,-500.0,0.00015722,2]
[408692084,1774128640810,-500.0,0.00015722,2]
[408692085,1774128640819,-500.0,0.00015722,2]
[408692086,1774128640828,-500.0,0.00015722,2]
[408692087,1774128640837,-500.0,0.00015722,2]
[408692088,1774128640847,-500.0,0.00015722,2]
[408692089,1774128640857,-500.0,0.00015722,2]
[408692090,1774128640867,-500.0,0.00015722,2]
[408692091,1774128640876,-500.0,0.00015722,2]
[408692092,1774128640886,-693.0,0.00015722,2]
[408692093,1774128640896,-500.0,0.00015722,2]
[408692094,1774128640906,-500.0,0.00015722,2]
[408692095,1774128640916,-266.24818512,0.00015722,2]
[408692096,1774128640925,-500.0,0.00015722,2]
[408692097,1774128640935,-500.0,0.00015722,2]
[408692098,1774128640944,-693.0,0.00015722,2]
[408692099,1774128640954,-409.47795526,0.00015722,2]
[408692100,1774128640963,-693.0,0.00015722,2]
[408692101,1774128640973,-693.0,0.00015722,2]
[408692102,1774128640982,-715.0,0.00015722,2]
[408692103,1774128640991,-1000.0,0.00015734,2]
[408692104,1774128641001,-13536.68320626,0.00015741,2]
[408692105,1774128641010,-377.24452357,0.00015741,2]
[408692106,1774128641019,-2000.0,0.000158,2]
[408692107,1774128641029,-25547.70144303,0.0001584,2]
[408692108,1774128641038,-350.0,0.00015841,2]
[408692109,1774128641047,-500.0,0.00015872,2]
[408692110,1774128641057,-4000.0,0.00015895,2]
[408692111,1774128641066,-10000.0,0.000159,2]
[408692112,1774128641075,-632.57584931,0.000159,2]
[408692113,1774128641083,-32061.70821267,0.000159,2]
[408692114,1774128641093,-1976.81087154,0.000159,2]
[408692115,1774128641102,-13536.68320626,0.000159,2]
[408692116,1774128641113,-377.24452357,0.000159,2]
[408692117,1774128641122,-41916.62693448,0.000159,2]
[408692118,1774128641131,-557.03672123,0.000159,2]
[408692119,1774128641142,-1718.0,0.000159,5]
[408692120,1774128641152,-223.21126623,0.00015928,2]
[408692121,1774128641162,-714.78,0.00015932,2]
[408692122,1774128641172,-255.0,0.00015959,2]
[408692123,1774128641182,-500.0,0.00015973,2]
[408692124,1774128641192,-500.0,0.00015973,2]
[408692125,1774128641202,-500.0,0.00015973,2]
[408692126,1774128641215,-500.0,0.00015973,2]
[408692127,1774128641225,-500.0,0.00015973,2]
[408692128,1774128641236,-500.0,0.00015973,2]
[408692129,1774128641247,-500.0,0.00015973,2]
[408692130,1774128641256,-500.0,0.00015973,2]
[408692131,1774128641266,-500.0,0.00015973,2]
[408692132,1774128641275,-500.0,0.00015973,2]
[408692133,1774128641287,-500.0,0.00015973,2]
[408692134,1774128641299,-500.0,0.00015973,2]
[408692135,1774128641308,-500.0,0.00015973,2]
[408692136,1774128641317,-500.0,0.00015973,2]
[408692137,1774128641327,-500.0,0.00015973,2]
[408692138,1774128641336,-500.0,0.00015973,2]
[408692139,1774128641346,-210.30338749,0.00015973,2]
[408692140,1774128641355,-500.0,0.00015973,2]
[408692141,1774128641365,-500.0,0.00015973,2]
[408692142,1774128641375,-500.0,0.00015973,2]
[408692143,1774128641385,-500.0,0.00015973,2]
[408692144,1774128641395,-500.0,0.00015973,2]
[408692145,1774128641404,-500.0,0.00015973,2]
[408692146,1774128641413,-500.0,0.00015973,2]
[408692147,1774128641422,-500.0,0.00015973,2]
[408692148,1774128641432,-502.1065801,0.00015973,2]
[408692149,1774128641441,-226.57620935,0.00015973,2]
[408692150,1774128641451,-500.0,0.00015973,2]
[408692151,1774128641460,-500.0,0.00015973,2]
[408692152,1774128641469,-500.0,0.00015973,2]
[408692153,1774128641479,-500.0,0.00015973,2]
[408692154,1774128641489,-500.0,0.00015973,2]
[408692155,1774128641499,-500.0,0.00015973,2]
[408692156,1774128641508,-500.0,0.00015973,2]
[408692157,1774128641518,-500.0,0.00015973,2]
[408692158,1774128641527,-500.0,0.00015973,2]
[408692159,1774128641536,-500.0,0.00015973,2]
[408692160,1774128641545,-500.0,0.00015973,2]
[408692161,1774128641555,-367.89307626,0.00015973,2]
[408692162,1774128641564,-151.0,0.00015997,2]
[408692163,1774128641575,-569.64418973,0.00015997,2]
[408692164,1774128641584,-500.0,0.00015997,2]
[408692165,1774128641594,-102420.3813998,0.00015998,2]
[408692166,1774128641604,-14294.2474458,0.00015998,2]
[408692167,1774128641614,-3599.5016605,0.00015998,2]
[408692168,1774128641624,-666.0,0.00015999,2]
[408692169,1774128641634,-155.0,0.00015999,2]
[408692170,1774128641644,-338.47316987,0.00015999,2]
[408692171,1774128641654,-2136.0,0.00016,5]
[408692172,1774128641664,-862295.82109281,0.00016,2]
[408692173,1774128641683,-162118.06154253,0.00016,2]
[408692174,1774128641695,-3216.5170958,0.00016,2]
[408692175,1774128641706,-410.03200002,0.00016,2]
[408692176,1774128641722,-453.00898369,0.00016,2]
[408692177,1774128641734,-640.93868497,0.00016,2]
[408692178,1774128641745,-273770.99023191,0.00016,2]
[408692179,1774128641777,-3098393.52047424,0.00016,2]
[408692180,1774128641792,-2183.52560609,0.00016,2]
[408692181,1774128641804,-497.813004,0.00016,2]
[408692182,1774128641815,-1739.2125644,0.00016,2]
[408692186,1774128642718,-410.36419237,0.000159,2]
[408692187,1774128642728,-1789.39495262,0.00016,2]
[408692215,1774128904991,1471.25,0.00011635,2]
[408692216,1774129129202,224.03,6.619e-05,2]
[408692217,1774129129403,224.03,6.968e-05,2]
[408692218,1774129129594,74.31,7.316e-05,2]
[408692219,1774129129621,149.72,7.316e-05,2]
[408692220,1774129129789,224.03,7.664e-05,2]
[408692221,1774129129982,224.03,8.013e-05,2]
[408692222,1774129130181,224.03,8.361e-05,2]
[408692223,1774129130367,224.03,8.71e-05,2]
[408692224,1774129130562,224.03,9.058e-05,2]
[408692225,1774129130813,224.03,9.406e-05,2]
[408692226,1774129131011,224.03,9.755e-05,2]
[408692227,1774129131204,224.03,0.00010103,2]
[408692228,1774129131597,224.03,0.00010452,2]
[408692229,1774129131978,224.03,0.000108,2]
[408692230,1774129132213,224.03,0.00011148,2]
[408692231,1774129132245,224.03,0.00011497,2]
[408692232,1774129132433,224.03,0.00011845,2]
[408692233,1774129132639,224.03,0.00012193,2]
[408692234,1774129132829,224.03,0.00012542,2]
[408692235,1774129133177,224.03,0.0001289,2]
[408692236,1774129504031,6265.81,0.0001291,2]
[408692237,1774129504058,10000.01,0.0001291,2]
[408692238,1774129504079,8731.69,0.0001291,2]
[408692239,1774129563105,234.87,0.00012935,2]
[408692240,1774129597159,-430.19328862,0.00012941,2]
[408692241,1774129635084,-1069.80671138,0.00012941,2]
[408692242,1774129635105,-250.0,0.0001304,2]
[408692243,1774129635132,-601.63581947,0.00013138,2]
[408692244,1774129635166,-250.0,0.00013159,2]
[408692245,1774129635190,-910.4306492,0.00013238,2]
[408692246,1774129654108,-155.59556229,0.00013238,2]
[408692247,1774129680000,500.0,0.00012873,2]
[408692248,1774129710465,533.45,0.00012845,2]
[408692249,1774129710488,566.44,0.00012845,2]
[408692252,1774129831531,-300.0,0.00013237,2]
[408692253,1774129831541,-104.30213,0.00013237,2]
[408692254,1774129831553,-195.69787,0.00013237,2]
[408692255,1774129831563,-1200.0,0.00013237,2]
[408692256,1774129831572,-677.14391342,0.00013238,2]
[408692257,1774129831588,-1424.51542341,0.00013238,2]
[408692258,1774129831607,-575.75,0.00013238,2]
[408692259,1774129831619,-2322.59066317,0.00013238,2]
[408692260,1774129831628,-1200.0,0.00013238,2]
[408692261,1774129831639,-4208.65960763,0.00013238,2]
[408692262,1774129831649,-5000.0,0.00013238,2]
[408692263,1774129831660,-390.46916564,0.00013238,2]